[Event "*** Titled Tuesday Blitz"]
[Site "Chess.com"]
[Date "2020.04.07"]
[Round "7"]
[White "Sneakiest_Of_Snakes"]
[Black "czasnaszachy"]
[Result "0-1"]
[WhiteElo "2120"]
[BlackElo "2323"]
[TimeControl "180+1"]
[EndTime "14:18:10 PDT"]
[Termination "czasnaszachy won by resignation"]

1. e4 {[%clk 0:03:00.9]} 1... e5 {[%clk 0:02:58]} 2. Nf3 {[%clk 0:03:01]} 2...
Nc6 {[%clk 0:02:57.7]} 3. Bc4 {[%clk 0:02:58.9]} 3... Bc5 {[%clk 0:02:56.3]} 4.
O-O {[%clk 0:02:58.1]} 4... Nf6 {[%clk 0:02:55.2]} 5. d3 {[%clk 0:02:58.2]} 5...
d6 {[%clk 0:02:55.2]} 6. c3 {[%clk 0:02:40.7]} 6... Bb6 {[%clk 0:02:52.8]} 7. a4
{[%clk 0:02:38.6]} 7... h6 {[%clk 0:02:45.2]} 8. Re1 {[%clk 0:02:30.9]} 8... a6
{[%clk 0:02:44.1]} 9. Nbd2 {[%clk 0:02:24.9]} 9... O-O {[%clk 0:02:43.9]} 10. h3
{[%clk 0:02:22.6]} 10... Ne7 {[%clk 0:02:41.7]} 11. Bb3 {[%clk 0:01:59.7]} 11...
Ng6 {[%clk 0:02:41]} 12. d4 {[%clk 0:01:57.5]} 12... Re8 {[%clk 0:02:36]} 13. a5
{[%clk 0:01:56]} 13... Ba7 {[%clk 0:02:35.2]} 14. Bc2 {[%clk 0:01:55.7]} 14...
exd4 {[%clk 0:02:27.4]} 15. cxd4 {[%clk 0:01:54.5]} 15... c6 {[%clk 0:02:09.9]}
16. Nf1 {[%clk 0:01:51.3]} 16... d5 {[%clk 0:02:04.6]} 17. e5 {[%clk 0:01:50.5]}
17... Ne4 {[%clk 0:02:04.5]} 18. Bxe4 {[%clk 0:01:46.8]} 18... dxe4 {[%clk
0:02:04.5]} 19. Rxe4 {[%clk 0:01:45.3]} 19... Be6 {[%clk 0:01:33.9]} 20. Ne3
{[%clk 0:01:11.3]} 20... Qd7 {[%clk 0:01:31.7]} 21. Bd2 {[%clk 0:01:05.3]} 21...
Rad8 {[%clk 0:01:17.5]} 22. Bb4 {[%clk 0:01:00.6]} 22... Ne7 {[%clk 0:00:50.6]}
23. Bd6 {[%clk 0:00:44.8]} 23... Bb8 {[%clk 0:00:49.8]} 24. Bxb8 {[%clk
0:00:44.3]} 24... Rxb8 {[%clk 0:00:49.7]} 25. Qc2 {[%clk 0:00:30.4]} 25... Rbd8
{[%clk 0:00:48.1]} 26. Qc5 {[%clk 0:00:28.8]} 26... Nd5 {[%clk 0:00:46.2]} 27.
Rc1 {[%clk 0:00:19.5]} 27... Bf5 {[%clk 0:00:38.1]} 28. Nxf5 {[%clk 0:00:18.2]}
28... Qxf5 {[%clk 0:00:38.1]} 29. Ree1 {[%clk 0:00:17]} 29... Re6 {[%clk
0:00:37.5]} 30. Kh2 {[%clk 0:00:15.5]} 30... Rg6 {[%clk 0:00:36.7]} 31. Nh4
{[%clk 0:00:15]} 31... Qf4+ {[%clk 0:00:36.1]} 32. g3 {[%clk 0:00:10.2]} 32...
Qxf2+ {[%clk 0:00:35.6]} 33. Kh1 {[%clk 0:00:09.8]} 33... Rxg3 {[%clk
0:00:32.6]} 0-1

[Event "*** Titled Tuesday Blitz"]
[Site "Chess.com"]
[Date "2020.04.07"]
[Round "7"]
[White "ecwinslow"]
[Black "MFguimaraes"]
[Result "0-1"]
[WhiteElo "2177"]
[BlackElo "2398"]
[TimeControl "180+1"]
[EndTime "14:18:11 PDT"]
[Termination "MFguimaraes won on time"]

1. e4 {[%clk 0:03:00.9]} 1... e5 {[%clk 0:02:58.6]} 2. Nf3 {[%clk 0:03:00.3]}
2... Nc6 {[%clk 0:02:56.6]} 3. d4 {[%clk 0:02:59]} 3... exd4 {[%clk 0:02:54.8]}
4. Nxd4 {[%clk 0:02:59.9]} 4... Bb4+ {[%clk 0:02:52.2]} 5. c3 {[%clk 0:02:51.6]}
5... Bc5 {[%clk 0:02:51.7]} 6. Nxc6 {[%clk 0:02:49.4]} 6... bxc6 {[%clk
0:02:49.4]} 7. Bc4 {[%clk 0:02:43.6]} 7... Qh4 {[%clk 0:02:48.1]} 8. Qf3 {[%clk
0:02:24.4]} 8... Nf6 {[%clk 0:02:46.8]} 9. Nd2 {[%clk 0:02:22.6]} 9... O-O
{[%clk 0:02:17.5]} 10. h3 {[%clk 0:02:18]} 10... d5 {[%clk 0:02:16.5]} 11. exd5
{[%clk 0:02:10.5]} 11... Re8+ {[%clk 0:02:11.6]} 12. Kf1 {[%clk 0:01:55.4]}
12... cxd5 {[%clk 0:01:58.7]} 13. Bd3 {[%clk 0:01:49.5]} 13... Ne4 {[%clk
0:01:46.7]} 14. Nb3 {[%clk 0:01:32.5]} 14... Nxf2 {[%clk 0:01:34]} 15. Nxc5
{[%clk 0:01:22.3]} 15... Nxh1 {[%clk 0:01:32.2]} 16. Bf4 {[%clk 0:01:17.2]}
16... Rb8 {[%clk 0:01:08.7]} 17. b4 {[%clk 0:01:14.5]} 17... g5 {[%clk
0:00:56.9]} 18. Bxc7 {[%clk 0:01:06.3]} 18... g4 {[%clk 0:00:56.1]} 19. Qf4
{[%clk 0:00:47.8]} 19... Rb6 {[%clk 0:00:34.3]} 20. Kg1 {[%clk 0:00:19.8]} 20...
Rf6 {[%clk 0:00:28.1]} 21. Qd2 {[%clk 0:00:14.3]} 21... Rf2 {[%clk 0:00:25.4]}
22. Qxf2 {[%clk 0:00:06.5]} 22... Nxf2 {[%clk 0:00:23.5]} 23. Bc2 {[%clk
0:00:04.5]} 23... gxh3 {[%clk 0:00:21.3]} 24. Rf1 {[%clk 0:00:02.9]} 24... h2+
{[%clk 0:00:21.1]} 0-1

[Event "*** Titled Tuesday Blitz"]
[Site "Chess.com"]
[Date "2020.04.07"]
[Round "7"]
[White "JulAnt"]
[Black "Anna_ChessMate"]
[Result "0-1"]
[WhiteElo "2420"]
[BlackElo "2609"]
[TimeControl "180+1"]
[EndTime "14:18:12 PDT"]
[Termination "Anna_ChessMate won by resignation"]

1. e4 {[%clk 0:03:00.9]} 1... e5 {[%clk 0:02:58.9]} 2. Nf3 {[%clk 0:03:00.8]}
2... Nc6 {[%clk 0:02:53.9]} 3. Bb5 {[%clk 0:03:00.8]} 3... a6 {[%clk 0:02:53.2]}
4. Ba4 {[%clk 0:03:00.7]} 4... Nf6 {[%clk 0:02:52.6]} 5. O-O {[%clk 0:02:59.9]}
5... Nxe4 {[%clk 0:02:52.9]} 6. d4 {[%clk 0:02:59.2]} 6... b5 {[%clk 0:02:52.9]}
7. Bb3 {[%clk 0:02:59.1]} 7... d5 {[%clk 0:02:53.3]} 8. dxe5 {[%clk 0:02:58.9]}
8... Be6 {[%clk 0:02:53.1]} 9. c3 {[%clk 0:02:58.9]} 9... Be7 {[%clk 0:02:53.5]}
10. Qe2 {[%clk 0:02:53.4]} 10... O-O {[%clk 0:02:51.1]} 11. Nbd2 {[%clk
0:02:53.1]} 11... Nc5 {[%clk 0:02:48.6]} 12. Bc2 {[%clk 0:02:52]} 12... d4
{[%clk 0:02:48.8]} 13. cxd4 {[%clk 0:02:49.6]} 13... Nxd4 {[%clk 0:02:49.7]} 14.
Nxd4 {[%clk 0:02:49.6]} 14... Qxd4 {[%clk 0:02:50.6]} 15. Nf3 {[%clk 0:02:49.8]}
15... Qg4 {[%clk 0:02:50]} 16. Be3 {[%clk 0:02:41.3]} 16... Bc4 {[%clk
0:02:49.2]} 17. Qd2 {[%clk 0:02:36.9]} 17... Bxf1 {[%clk 0:02:37.1]} 18. Rxf1
{[%clk 0:02:37.8]} 18... Rad8 {[%clk 0:02:34.5]} 19. Qc3 {[%clk 0:02:37.4]}
19... Ne6 {[%clk 0:02:25.3]} 20. a3 {[%clk 0:02:36.4]} 20... c5 {[%clk
0:02:25.3]} 21. b3 {[%clk 0:02:21.7]} 21... Nd4 {[%clk 0:02:24.8]} 22. Bxd4
{[%clk 0:02:17.5]} 22... cxd4 {[%clk 0:02:24.4]} 23. Qd3 {[%clk 0:02:17.8]}
23... g6 {[%clk 0:02:24.4]} 24. a4 {[%clk 0:02:15.8]} 24... bxa4 {[%clk
0:02:23.9]} 25. bxa4 {[%clk 0:02:16.7]} 25... Rc8 {[%clk 0:02:14.1]} 26. Bb1
{[%clk 0:01:54]} 26... Rfd8 {[%clk 0:02:12.3]} 27. h3 {[%clk 0:01:46.6]} 27...
Qd7 {[%clk 0:02:08.2]} 28. Re1 {[%clk 0:01:38.5]} 28... Qxa4 {[%clk 0:02:06.5]}
29. e6 {[%clk 0:01:36.9]} 29... f6 {[%clk 0:02:06.5]} 30. Qe4 {[%clk 0:01:35.3]}
30... Qc6 {[%clk 0:02:04.4]} 31. Qg4 {[%clk 0:01:34.9]} 31... d3 {[%clk
0:02:00.4]} 32. Rd1 {[%clk 0:01:29.7]} 32... f5 {[%clk 0:01:55]} 33. Qg3 {[%clk
0:01:28]} 33... Qc7 {[%clk 0:01:46.7]} 34. Ne5 {[%clk 0:01:22.9]} 34... Bd6
{[%clk 0:01:39.8]} 35. f4 {[%clk 0:01:21.9]} 35... Bxe5 {[%clk 0:01:37.2]} 36.
fxe5 {[%clk 0:01:22.8]} 36... Qb6+ {[%clk 0:01:37.7]} 37. Kh2 {[%clk 0:01:21.7]}
37... Qxe6 {[%clk 0:01:38.3]} 38. Bxd3 {[%clk 0:01:20.9]} 38... Kg7 {[%clk
0:01:37.7]} 39. Qe3 {[%clk 0:01:15.3]} 39... Rd5 {[%clk 0:01:33.7]} 40. Re1
{[%clk 0:00:54.6]} 40... Rc3 {[%clk 0:01:31.7]} 41. Qa7+ {[%clk 0:00:54.3]}
41... Rd7 {[%clk 0:01:29.5]} 42. Qxa6 {[%clk 0:00:54.4]} 42... Qxa6 {[%clk
0:01:29.2]} 43. Bxa6 {[%clk 0:00:55.3]} 43... Re7 {[%clk 0:01:27.3]} 44. Bb5
{[%clk 0:00:18.8]} 44... Rc5 {[%clk 0:01:26.5]} 45. Ba4 {[%clk 0:00:16]} 45...
Rcxe5 {[%clk 0:01:26.5]} 46. Rxe5 {[%clk 0:00:15.5]} 46... Rxe5 {[%clk
0:01:27.4]} 47. Kg3 {[%clk 0:00:16.2]} 47... Kf6 {[%clk 0:01:27.9]} 48. Bc2
{[%clk 0:00:16]} 48... h6 {[%clk 0:01:27.3]} 49. Kf3 {[%clk 0:00:16.4]} 49... g5
{[%clk 0:01:28.2]} 50. g4 {[%clk 0:00:16.8]} 50... f4 {[%clk 0:01:26]} 0-1

[Event "*** Titled Tuesday Blitz"]
[Site "Chess.com"]
[Date "2020.04.07"]
[Round "7"]
[White "JacekDubiel"]
[Black "SergioGarciaFuentes"]
[Result "1-0"]
[WhiteElo "2379"]
[BlackElo "2188"]
[TimeControl "180+1"]
[EndTime "14:18:15 PDT"]
[Termination "JacekDubiel won on time"]

1. e4 {[%clk 0:03:00.9]} 1... c5 {[%clk 0:02:58.8]} 2. Nf3 {[%clk 0:03:01.1]}
2... e6 {[%clk 0:02:58.4]} 3. d4 {[%clk 0:03:01.2]} 3... cxd4 {[%clk 0:02:58.9]}
4. Nxd4 {[%clk 0:03:02.1]} 4... Nc6 {[%clk 0:02:59.4]} 5. Nc3 {[%clk 0:03:02.4]}
5... a6 {[%clk 0:02:59.4]} 6. Be2 {[%clk 0:03:02.6]} 6... Nge7 {[%clk
0:02:58.4]} 7. Nb3 {[%clk 0:03:01.3]} 7... b5 {[%clk 0:02:48.8]} 8. f4 {[%clk
0:02:58.7]} 8... Ng6 {[%clk 0:02:47.6]} 9. O-O {[%clk 0:02:55.3]} 9... Be7
{[%clk 0:02:46.9]} 10. Qe1 {[%clk 0:02:45.7]} 10... O-O {[%clk 0:02:44.5]} 11.
Bf3 {[%clk 0:02:45.2]} 11... Bb7 {[%clk 0:02:39.8]} 12. e5 {[%clk 0:02:42.2]}
12... d6 {[%clk 0:02:27.6]} 13. exd6 {[%clk 0:02:41.3]} 13... Bxd6 {[%clk
0:02:25.2]} 14. g3 {[%clk 0:02:39.8]} 14... Rc8 {[%clk 0:02:01.6]} 15. Ne4
{[%clk 0:02:33.6]} 15... Bc7 {[%clk 0:01:18]} 16. Be3 {[%clk 0:02:31.1]} 16...
Bb6 {[%clk 0:01:12.5]} 17. Nec5 {[%clk 0:02:20.7]} 17... Qc7 {[%clk 0:01:04.5]}
18. Nxb7 {[%clk 0:02:19.2]} 18... Qxb7 {[%clk 0:01:02.2]} 19. Rd1 {[%clk
0:02:00.4]} 19... Nge7 {[%clk 0:00:49.2]} 20. Qf2 {[%clk 0:01:48.2]} 20... Bxe3
{[%clk 0:00:46]} 21. Qxe3 {[%clk 0:01:49.1]} 21... Rfd8 {[%clk 0:00:42.3]} 22.
Na5 {[%clk 0:01:40.5]} 22... Qc7 {[%clk 0:00:37.2]} 23. Nxc6 {[%clk 0:01:36.5]}
23... Nxc6 {[%clk 0:00:36.8]} 24. Qc5 {[%clk 0:01:30.9]} 24... Rxd1 {[%clk
0:00:24.3]} 25. Rxd1 {[%clk 0:01:30]} 25... g6 {[%clk 0:00:24.9]} 26. c3 {[%clk
0:01:27.9]} 26... h5 {[%clk 0:00:22.4]} 27. Kg2 {[%clk 0:01:28]} 27... Ne7
{[%clk 0:00:20.2]} 28. Qxc7 {[%clk 0:01:25.8]} 28... Rxc7 {[%clk 0:00:21.1]} 29.
Rd6 {[%clk 0:01:26]} 29... Ra7 {[%clk 0:00:18.2]} 30. Be4 {[%clk 0:01:22]} 30...
Kf8 {[%clk 0:00:16.8]} 31. Kf3 {[%clk 0:01:21.4]} 31... Nf5 {[%clk 0:00:16.3]}
32. Bxf5 {[%clk 0:01:21]} 32... exf5 {[%clk 0:00:13.4]} 33. Ke3 {[%clk
0:01:19.8]} 33... Ke7 {[%clk 0:00:13.8]} 34. Rb6 {[%clk 0:01:19.8]} 34... Kd7
{[%clk 0:00:13.8]} 35. Kd4 {[%clk 0:01:18.9]} 35... Kc7 {[%clk 0:00:06.1]} 36.
Rf6 {[%clk 0:01:18.8]} 36... Kd8 {[%clk 0:00:05.7]} 37. Kc5 {[%clk 0:01:17.9]}
37... Ke7 {[%clk 0:00:06.4]} 38. Rc6 {[%clk 0:01:16.9]} 38... Rd7 {[%clk
0:00:05]} 39. Rxa6 {[%clk 0:01:16.7]} 39... Rd2 {[%clk 0:00:05.1]} 40. b4 {[%clk
0:01:16.2]} 40... Rxh2 {[%clk 0:00:04.5]} 41. Kxb5 {[%clk 0:01:16.5]} 41... Rg2
{[%clk 0:00:04.6]} 42. c4 {[%clk 0:01:11.5]} 42... Rxg3 {[%clk 0:00:05.5]} 43.
c5 {[%clk 0:01:11.8]} 43... Rc3 {[%clk 0:00:05.8]} 44. Ra8 {[%clk 0:01:11.2]}
44... h4 {[%clk 0:00:06.2]} 45. Rh8 {[%clk 0:01:10.8]} 45... h3 {[%clk
0:00:06.8]} 46. a4 {[%clk 0:01:11.1]} 46... g5 {[%clk 0:00:07]} 47. fxg5 {[%clk
0:01:10.9]} 47... f4 {[%clk 0:00:07.3]} 48. c6 {[%clk 0:01:11.1]} 1-0

[Event "*** Titled Tuesday Blitz"]
[Site "Chess.com"]
[Date "2020.04.07"]
[Round "7"]
[White "Frogo47"]
[Black "GM-AndreyOrlov"]
[Result "0-1"]
[WhiteElo "2493"]
[BlackElo "2651"]
[TimeControl "180+1"]
[EndTime "14:18:19 PDT"]
[Termination "GM-AndreyOrlov won by resignation"]

1. e4 {[%clk 0:03:00.9]} 1... d6 {[%clk 0:02:59.2]} 2. d4 {[%clk 0:03:00.4]}
2... Nf6 {[%clk 0:02:59.2]} 3. Nc3 {[%clk 0:03:00.4]} 3... e5 {[%clk 0:02:59.4]}
4. Nf3 {[%clk 0:02:57.4]} 4... Nbd7 {[%clk 0:02:58.9]} 5. Bc4 {[%clk 0:02:57.5]}
5... Be7 {[%clk 0:02:58.3]} 6. O-O {[%clk 0:02:57.4]} 6... O-O {[%clk
0:02:58.5]} 7. Re1 {[%clk 0:02:57.7]} 7... c6 {[%clk 0:02:58.8]} 8. a4 {[%clk
0:02:58.2]} 8... a5 {[%clk 0:02:59.1]} 9. h3 {[%clk 0:02:58.2]} 9... Nb6 {[%clk
0:02:53.9]} 10. Ba2 {[%clk 0:02:57.9]} 10... exd4 {[%clk 0:02:54.4]} 11. Nxd4
{[%clk 0:02:56.6]} 11... Nfd7 {[%clk 0:02:54.6]} 12. Nf5 {[%clk 0:02:49.9]}
12... Nc5 {[%clk 0:02:54.6]} 13. Nxe7+ {[%clk 0:02:36.7]} 13... Qxe7 {[%clk
0:02:54.4]} 14. Bf4 {[%clk 0:02:36.8]} 14... Rd8 {[%clk 0:02:54.5]} 15. Qd4
{[%clk 0:02:19.2]} 15... Be6 {[%clk 0:02:44]} 16. Bxe6 {[%clk 0:02:02.3]} 16...
fxe6 {[%clk 0:02:16.4]} 17. e5 {[%clk 0:01:55.9]} 17... d5 {[%clk 0:02:16]} 18.
b3 {[%clk 0:01:50.8]} 18... Nbd7 {[%clk 0:02:09.2]} 19. Rad1 {[%clk 0:01:43.1]}
19... Rf8 {[%clk 0:02:08.6]} 20. Bg3 {[%clk 0:01:27.9]} 20... Na6 {[%clk
0:02:05.5]} 21. Ne2 {[%clk 0:01:20.9]} 21... Nb4 {[%clk 0:01:59]} 22. Qd2 {[%clk
0:01:20.7]} 22... c5 {[%clk 0:01:57.6]} 23. Nc3 {[%clk 0:01:12]} 23... Rf5
{[%clk 0:01:53.4]} 24. f4 {[%clk 0:01:09.4]} 24... Raf8 {[%clk 0:01:50.7]} 25.
Ne4 {[%clk 0:00:59.7]} 25... Nc6 {[%clk 0:01:38.9]} 26. Nd6 {[%clk 0:00:58.8]}
26... Rh5 {[%clk 0:01:38.9]} 27. Qe2 {[%clk 0:00:51.1]} 27... g6 {[%clk
0:01:36.3]} 28. c3 {[%clk 0:00:48.7]} 28... Kg7 {[%clk 0:01:24.7]} 29. Qg4
{[%clk 0:00:44.5]} 29... b6 {[%clk 0:01:05.4]} 30. Rf1 {[%clk 0:00:40.7]} 30...
Nd8 {[%clk 0:01:01.6]} 31. Qe2 {[%clk 0:00:25.2]} 31... Nf7 {[%clk 0:00:59.4]}
32. Nxf7 {[%clk 0:00:21]} 32... Rxf7 {[%clk 0:00:57.6]} 33. c4 {[%clk
0:00:21.9]} 33... d4 {[%clk 0:00:57.2]} 34. Qe4 {[%clk 0:00:21.8]} 34... Rhf5
{[%clk 0:00:53.9]} 35. Rf3 {[%clk 0:00:20.5]} 35... Rf8 {[%clk 0:00:51.8]} 36.
Rdd3 {[%clk 0:00:19.7]} 36... Qe8 {[%clk 0:00:50.8]} 37. Be1 {[%clk 0:00:15.4]}
37... Qa8 {[%clk 0:00:47.6]} 38. Qxa8 {[%clk 0:00:14.4]} 38... Rxa8 {[%clk
0:00:48.5]} 39. Bd2 {[%clk 0:00:15]} 39... Raf8 {[%clk 0:00:47.3]} 40. g3 {[%clk
0:00:13.9]} 40... Nxe5 {[%clk 0:00:46.4]} 41. fxe5 {[%clk 0:00:13.1]} 41... Rxf3
{[%clk 0:00:46.6]} 42. Rxf3 {[%clk 0:00:13.4]} 42... Rxf3 {[%clk 0:00:46.7]} 43.
Bf4 {[%clk 0:00:14.3]} 43... Rxb3 {[%clk 0:00:46.1]} 0-1

[Event "*** Titled Tuesday Blitz"]
[Site "Chess.com"]
[Date "2020.04.07"]
[Round "7"]
[White "Supelyel"]
[Black "BobSacIt"]
[Result "1/2-1/2"]
[WhiteElo "2350"]
[BlackElo "2198"]
[TimeControl "180+1"]
[EndTime "14:18:19 PDT"]
[Termination "Game drawn by agreement"]

1. c4 {[%clk 0:03:00.9]} 1... c5 {[%clk 0:02:57.5]} 2. Nc3 {[%clk 0:02:57.9]}
2... Nc6 {[%clk 0:02:57.9]} 3. Nf3 {[%clk 0:02:58]} 3... Nf6 {[%clk 0:02:58.1]}
4. g3 {[%clk 0:02:56.3]} 4... e6 {[%clk 0:02:58.5]} 5. Bg2 {[%clk 0:02:55]} 5...
d5 {[%clk 0:02:58.2]} 6. cxd5 {[%clk 0:02:55.4]} 6... exd5 {[%clk 0:02:59.1]} 7.
d4 {[%clk 0:02:56.1]} 7... cxd4 {[%clk 0:02:49.5]} 8. Nxd4 {[%clk 0:02:53.9]}
8... Be7 {[%clk 0:02:48]} 9. O-O {[%clk 0:02:49.7]} 9... O-O {[%clk 0:02:48]}
10. Bg5 {[%clk 0:02:37.7]} 10... Nxd4 {[%clk 0:02:37.2]} 11. Qxd4 {[%clk
0:02:36.9]} 11... Be6 {[%clk 0:02:37.2]} 12. Rfd1 {[%clk 0:02:32.2]} 12... Re8
{[%clk 0:02:31.9]} 13. Qa4 {[%clk 0:02:07]} 13... Qb6 {[%clk 0:02:22.9]} 14. Qb5
{[%clk 0:01:39.5]} 14... h6 {[%clk 0:01:42.5]} 15. Be3 {[%clk 0:01:22.9]} 15...
Qc6 {[%clk 0:01:17.8]} 16. Rac1 {[%clk 0:01:07.6]} 16... a6 {[%clk 0:01:18]} 17.
Qb6 {[%clk 0:01:04.3]} 17... Qxb6 {[%clk 0:01:07.9]} 18. Bxb6 {[%clk 0:01:03.7]}
18... Rac8 {[%clk 0:01:08.4]} 19. Nxd5 {[%clk 0:00:43]} 19... Nxd5 {[%clk
0:00:52.2]} 20. Rxc8 {[%clk 0:00:42.1]} 20... Rxc8 {[%clk 0:00:38.4]} 21. Bxd5
{[%clk 0:00:41.9]} 21... Bxd5 {[%clk 0:00:35.6]} 22. Rxd5 {[%clk 0:00:42.8]}
22... Rc2 {[%clk 0:00:31.4]} 23. Bd4 {[%clk 0:00:18.6]} 23... Rxe2 {[%clk
0:00:29.6]} 24. Rd7 {[%clk 0:00:18.8]} 24... b5 {[%clk 0:00:29]} 25. Ra7 {[%clk
0:00:16.5]} 25... Re6 {[%clk 0:00:29.2]} 26. Kg2 {[%clk 0:00:16]} 26... Bf6
{[%clk 0:00:28.7]} 27. Bxf6 {[%clk 0:00:15.8]} 27... Rxf6 {[%clk 0:00:28.5]} 28.
f4 {[%clk 0:00:16.5]} 28... Re6 {[%clk 0:00:27.8]} 29. Kf3 {[%clk 0:00:17.4]}
29... g6 {[%clk 0:00:27.5]} 30. f5 {[%clk 0:00:17.2]} 30... Rd6 {[%clk
0:00:20.4]} 31. fxg6 {[%clk 0:00:16.5]} 31... Rxg6 {[%clk 0:00:21.3]} 32. h4
{[%clk 0:00:15.7]} 32... Re6 {[%clk 0:00:21.2]} 33. Kg4 {[%clk 0:00:16.1]} 33...
Kg7 {[%clk 0:00:21.6]} 34. b3 {[%clk 0:00:14.9]} 34... Rd6 {[%clk 0:00:21.8]}
35. Kh3 {[%clk 0:00:14.7]} 35... Re6 {[%clk 0:00:22.2]} 36. Kg4 {[%clk
0:00:12.9]} 1/2-1/2

[Event "*** Titled Tuesday Blitz"]
[Site "Chess.com"]
[Date "2020.04.07"]
[Round "7"]
[White "Rsnr"]
[Black "Sebastian"]
[Result "1-0"]
[WhiteElo "2833"]
[BlackElo "3002"]
[TimeControl "180+1"]
[EndTime "14:18:20 PDT"]
[Termination "Rsnr won by resignation"]

1. d4 {[%clk 0:03:00.9]} 1... Nf6 {[%clk 0:02:59.7]} 2. c4 {[%clk 0:03:01.4]}
2... e6 {[%clk 0:03:00.2]} 3. Nf3 {[%clk 0:03:01.9]} 3... d5 {[%clk 0:03:00.4]}
4. g3 {[%clk 0:03:02.4]} 4... Be7 {[%clk 0:03:00.2]} 5. Bg2 {[%clk 0:03:02.7]}
5... O-O {[%clk 0:03:00.9]} 6. O-O {[%clk 0:03:03.4]} 6... Nbd7 {[%clk 0:03:01]}
7. Qc2 {[%clk 0:03:02.8]} 7... c6 {[%clk 0:02:59]} 8. Nbd2 {[%clk 0:03:03.1]}
8... b6 {[%clk 0:02:58.5]} 9. e4 {[%clk 0:03:03.7]} 9... dxc4 {[%clk 0:02:58.1]}
10. Nxc4 {[%clk 0:03:03.6]} 10... Bb7 {[%clk 0:02:58.3]} 11. Rd1 {[%clk
0:02:10.3]} 11... c5 {[%clk 0:02:56.1]} 12. Nfe5 {[%clk 0:02:10.1]} 12... cxd4
{[%clk 0:02:51.6]} 13. Rxd4 {[%clk 0:02:06.2]} 13... Qc8 {[%clk 0:01:50.4]} 14.
Nxd7 {[%clk 0:02:00.5]} 14... Nxd7 {[%clk 0:01:49.8]} 15. Qd1 {[%clk 0:01:52.1]}
15... Nf6 {[%clk 0:01:34.8]} 16. Bf4 {[%clk 0:01:37]} 16... Rd8 {[%clk
0:01:21.7]} 17. Bd6 {[%clk 0:01:20.5]} 17... Qd7 {[%clk 0:00:20.5]} 18. e5
{[%clk 0:00:50.9]} 18... Nd5 {[%clk 0:00:19.7]} 19. Bxe7 {[%clk 0:00:51.2]}
19... Qxe7 {[%clk 0:00:19.8]} 20. Nd6 {[%clk 0:00:51.8]} 20... Bc6 {[%clk
0:00:16.6]} 21. Rc1 {[%clk 0:00:51.6]} 21... Qd7 {[%clk 0:00:15.1]} 22. Rdc4
{[%clk 0:00:46.5]} 22... Bb5 {[%clk 0:00:15]} 23. Bxd5 {[%clk 0:00:41.8]} 23...
Bxc4 {[%clk 0:00:13.6]} 24. Bxc4 {[%clk 0:00:42.7]} 24... Qe7 {[%clk 0:00:09.8]}
25. Qb3 {[%clk 0:00:31.8]} 25... h6 {[%clk 0:00:06.9]} 26. f4 {[%clk 0:00:32]}
26... Rab8 {[%clk 0:00:05.4]} 27. a4 {[%clk 0:00:30]} 27... a6 {[%clk
0:00:05.4]} 28. Bxa6 {[%clk 0:00:30.1]} 28... Qa7 {[%clk 0:00:02.8]} 29. Bb5
{[%clk 0:00:29.7]} 29... Qa5 {[%clk 0:00:03.2]} 30. Qc3 {[%clk 0:00:29.4]} 30...
Qa7 {[%clk 0:00:03.3]} 31. Qc7 {[%clk 0:00:29.3]} 31... Qa8 {[%clk 0:00:03.5]}
32. Qxf7+ {[%clk 0:00:29.3]} 32... Kh8 {[%clk 0:00:04.2]} 33. Rc7 {[%clk
0:00:29.5]} 33... Rg8 {[%clk 0:00:03.7]} 34. Qg6 {[%clk 0:00:29.4]} 34... Rbf8
{[%clk 0:00:04.3]} 35. Bd3 {[%clk 0:00:29.4]} 1-0

[Event "*** Titled Tuesday Blitz"]
[Site "Chess.com"]
[Date "2020.04.07"]
[Round "7"]
[White "Nastya_Rakhmangulova"]
[Black "ckgchess"]
[Result "0-1"]
[WhiteElo "2380"]
[BlackElo "2632"]
[TimeControl "180+1"]
[EndTime "14:18:21 PDT"]
[Termination "ckgchess won by resignation"]

1. e4 {[%clk 0:03:00.9]} 1... c5 {[%clk 0:02:57.6]} 2. Nf3 {[%clk 0:03:00.8]}
2... d6 {[%clk 0:02:56.9]} 3. d4 {[%clk 0:03:00.7]} 3... cxd4 {[%clk 0:02:57.8]}
4. Nxd4 {[%clk 0:03:01.6]} 4... Nf6 {[%clk 0:02:56.1]} 5. Nc3 {[%clk 0:03:02.2]}
5... a6 {[%clk 0:02:54.2]} 6. Bg5 {[%clk 0:03:02]} 6... e6 {[%clk 0:02:54.4]} 7.
f4 {[%clk 0:03:02.1]} 7... Qb6 {[%clk 0:02:52]} 8. Nb3 {[%clk 0:02:41.4]} 8...
Nbd7 {[%clk 0:02:30.7]} 9. Be2 {[%clk 0:02:39.7]} 9... Be7 {[%clk 0:02:27.9]}
10. Qd2 {[%clk 0:02:36.8]} 10... Qc7 {[%clk 0:01:54.1]} 11. O-O-O {[%clk
0:02:33.2]} 11... b5 {[%clk 0:01:52.2]} 12. Bf3 {[%clk 0:02:32.2]} 12... Bb7
{[%clk 0:01:47.1]} 13. Rhe1 {[%clk 0:01:53.3]} 13... Rc8 {[%clk 0:01:40.7]} 14.
e5 {[%clk 0:01:23.9]} 14... dxe5 {[%clk 0:01:34.8]} 15. fxe5 {[%clk 0:01:24.8]}
15... Bxf3 {[%clk 0:01:31.5]} 16. gxf3 {[%clk 0:01:24.7]} 16... b4 {[%clk
0:01:24.3]} 17. exf6 {[%clk 0:00:51.6]} 17... gxf6 {[%clk 0:01:05.5]} 18. Nd5
{[%clk 0:00:37.9]} 18... exd5 {[%clk 0:00:59.6]} 19. Bf4 {[%clk 0:00:28.4]}
19... Ne5 {[%clk 0:00:58.1]} 20. Nd4 {[%clk 0:00:25.4]} 20... Rg8 {[%clk
0:00:41.7]} 21. Re2 {[%clk 0:00:24.5]} 21... Rg6 {[%clk 0:00:37.9]} 22. Nf5
{[%clk 0:00:23.3]} 22... Kf8 {[%clk 0:00:33.5]} 23. Nxe7 {[%clk 0:00:20.3]}
23... Qxe7 {[%clk 0:00:34.4]} 24. Qxd5 {[%clk 0:00:20]} 24... Kg8 {[%clk
0:00:24.9]} 25. Bxe5 {[%clk 0:00:19.9]} 25... fxe5 {[%clk 0:00:25.8]} 26. Rxe5
{[%clk 0:00:17.1]} 26... Qc7 {[%clk 0:00:20]} 27. Qd3 {[%clk 0:00:13.4]} 27...
Qxe5 {[%clk 0:00:19.4]} 0-1